[Event "NED-ch U14 Youth 2019"]
[Site "Assen"]
[Date "2019.05.04"]
[Round "9.4"]
[White "Jakhari, Ansh"]
[Black "Bleeker, Kasper"]
[Result "0-1"]
[ECO "C47"]
[WhiteElo "1630"]
[BlackElo "1932"]
[Annotator "NA RC"]
[PlyCount "46"]
[EventDate "2019.04.28"]
[EventType "swiss"]
[EventCountry "NED"]
[SourceTitle "playchess.com"]
[Source "ChessBase"]
[SourceQuality "1"]
[TimeControl "5400+30"]

{[%evp 8,46,-9,-8,32767,32767,32767,32767,32767,32767,32767,32767,32767,32767,32767,32767,32767,32767,32767,32767,32767,32767,32767,30,30,37,74,47,48,5,25,6,0,-617,-645,-5365,-573,-12154,-573,-5281,-565]} 1. e4 {[%emt 0:00:00]} e5 {[%emt 0:00:00]} 2. Nf3 {[%emt 0:00:00]} Nc6 {[%emt 0:00:00]} 3. Nc3 {[%emt 0:00:00]} (3. d4 exd4 4. Nxd4 Nf6 {½-½ (8) Laketic,G (2370)-Runic,Z (2387) Novi Sad 2017}) 3... Nf6 {[%emt 0:00:00]} 4. d4 {[%emt 0:00:00]} exd4 {[%emt 0:00:00]} 5. Nxd4 {[%emt 0:00:00]} Bb4 {[%emt 0:00:29]} 6. Nxc6 {[%emt 0:00:00]} bxc6 {[%emt 0:00:06]} 7. Bd3 {[%emt 0:00:08]} d5 {[%emt 0:01:37]} 8. exd5 {[%emt 0:00:17]} Nxd5 {[%emt 0:02:33]} 9. Bd2 {[%emt 0:00:06] C47: Scotch Four Knights and Four Knights with 4 g3} Qf6 {[%emt 0:02:48]} 10. Nxd5 {[%emt 0:00:56]} Bxd2+ {[%emt 0:00:14]} 11. Qxd2 {[%emt 0:00:06]} cxd5 {[%emt 0:00:12]} 12. c3 $146 {[%emt 0:00:41]} ({Predecessor:} 12. Bb5+ c6 13. Qxd5 Bd7 14. Qe4+ Kd8 15. O-O Re8 16. Qxh7 cxb5 {½-½ (49) Wenke,A-Casper,L Germany 2010}) 12... O-O {[%emt 0:01:17]} 13. O-O {[%emt 0:00:07]} Bf5 {[%emt 0:01:28]} 14. Rad1 {[%emt 0:01:23]} Rad8 {[%emt 0:00:25]} 15. Bxf5 {[%emt 0:02:06]} Qxf5 {[%emt 0:00:04]} 16. Qd4 {[%emt 0:00:12]} Rfe8 {[%emt 0:01:38]} 17. Rfe1 {[%emt 0:01:03]} h6 {[%emt 0:00:03]} 18. h3 {[%emt 0:04:17]} a6 {[%emt 0:00:36]} 19. Rxe8+ {[%emt 0:12:29]} Rxe8 {[%emt 0:00:03]} 20. Qxd5 $2 {[%emt 0:00:08] [#]} (20. Kf1 $11) 20... Re1+ $1 {[%emt 0:00:39]} 21. Kh2 {[%emt 0:02:48]} Qf4+ {[%emt 0:00:08]} 22. g3 {[%emt 0:00:52]} Qxf2+ {[%emt 0:00:02] Double Attack} 23. Qg2 {[%emt 0:00:33]} Qxg2+ $19 {[%emt 0:00:14]} 0-1

[Event "NED-ch U14 Youth 2019"]
[Site "Assen"]
[Date "2019.05.04"]
[Round "9.5"]
[White "Van der Hagen, Loek"]
[Black "Boghossian, Wahe"]
[Result "1/2-1/2"]
[ECO "B94"]
[WhiteElo "1931"]
[BlackElo "1820"]
[Annotator "NA RC"]
[PlyCount "78"]
[EventDate "2019.04.28"]
[EventType "swiss"]
[EventCountry "NED"]
[SourceTitle "playchess.com"]
[Source "ChessBase"]
[SourceQuality "1"]
[TimeControl "5400+30"]

{[%evp 14,68,54,48,56,49,39,56,60,75,70,61,70,50,58,52,52,3,27,32,19,32767,58,32767,40,41,71,32767,32767,32767,32767,32767,-16,-35,32767,32767,2,9,32767,0,19,32767,29,24,32767,32767,31,21,23,32767,32767,0,0,0,0,0,0]} 1. e4 {[%emt 0:00:00]} c5 {[%emt 0:00:00]} 2. Nf3 {[%emt 0:00:00]} d6 {[%emt 0:00:00]} 3. d4 {[%emt 0:00:00]} cxd4 {[%emt 0:00:00]} 4. Nxd4 {[%emt 0:00:00]} Nf6 {[%emt 0:00:53]} 5. Nc3 {[%emt 0:00:11]} a6 {[%emt 0:01:24]} 6. Bg5 {[%emt 0:00:21]} e5 {[%emt 0:05:56]} 7. Nf5 {[%emt 0:00:24] B94: Sicilian Najdorf: 6 Bg5 Nbd7} Bxf5 {[%emt 0:10:04]} (7... Be6 8. Ne3 Nbd7 9. Ned5 Rc8 10. Be2 h6 11. Bxf6 Nxf6 12. Nxf6+ Qxf6 13. O-O g6 14. Nd5 Qd8 {0-1 (36) Nepomniachtchi,I (2587)-Nakamura,H (2651) playchess.com INT 2007}) 8. exf5 {[%emt 0:00:17]} Be7 {[%emt 0:00:53]} 9. g3 {[%emt 0:02:05]} Nbd7 $146 {[%emt 0:03:36]} ({Predecessor:} 9... Nc6 10. Bg2 Rc8 11. O-O Nd4 12. Be3 Qb6 13. Rb1 O-O 14. Re1 Rfe8 {1-0 (26) Franco Rincon,D (2000)-Benavente Miguel,A (2000) ICCF email 2008}) 10. Bg2 {[%emt 0:01:02]} Rb8 {[%emt 0:04:20]} 11. a4 {[%emt 0:02:31]} O-O {[%emt 0:01:19]} 12. O-O {[%emt 0:01:05]} h6 {[%emt 0:09:17]} 13. Be3 {[%emt 0:03:32]} Nb6 {[%emt 0:03:37]} 14. b3 {[%emt 0:04:05]} Qc7 {[%emt 0:02:07]} 15. a5 {[%emt 0:01:08]} Nbd7 {[%emt 0:02:51]} 16. Nd5 {[%emt 0:04:58]} Nxd5 {[%emt 0:51:43]} 17. Bxd5 {[%emt 0:00:16]} Qc8 {[%emt 0:00:00]} 18. Bg2 {[%emt 0:07:49]} Nf6 {[%emt 0:00:00]} 19. g4 {[%emt 0:05:27]} Qd7 {[%emt 0:00:00]} 20. h3 {[%emt 0:03:05]} d5 {[%emt 0:00:00]} 21. f4 {[%emt 0:02:00]} exf4 {[%emt 0:00:00]} 22. Bxf4 {[%emt 0:01:16]} Rbc8 {[%emt 0:00:00]} 23. Qd3 {[%emt 0:07:05]} Rfd8 {[%emt 0:00:00]} 24. Kh1 {[%emt 0:02:52]} Qb5 {[%emt 0:00:00]} 25. Qxb5 {[%emt 0:01:53]} axb5 {[%emt 0:00:00]} 26. Rf2 {[%emt 0:02:53]} Bb4 {[%emt 0:00:00]} (26... Ne4 $5 {[%cal Re4f2]} 27. Re2 Bh4 $11) 27. Re2 {[%emt 0:06:47]} Bc3 {[%emt 0:00:00]} 28. Ra2 {[%emt 0:02:02]} Rd7 {[%emt 0:00:11]} 29. Bf3 {[%emt 0:07:17]} Kh7 {[%emt 0:03:46]} 30. Kg2 {[%emt 0:01:59]} Ra8 {[%emt 0:01:39]} 31. Bd2 {[%emt 0:00:33]} Rc8 {[%emt 0:00:54]} 32. a6 {[%emt 0:08:39]} bxa6 {[%emt 0:00:15]} 33. Rxa6 {[%emt 0:00:06]} Bxd2 {[%emt 0:00:54]} 34. Rxd2 {[%emt 0:00:08]} Rdc7 $11 {[%emt 0:00:27]} 35. Ra2 {[%emt 0:03:46]} Rc3 {[%emt 0:00:24]} 36. h4 {[%emt 0:02:27]} R8c5 {[%emt 0:00:58]} 37. Kf2 {[%emt 0:03:19]} Ne4+ {[%emt 0:00:26]} 38. Bxe4 {[%emt 0:00:11]} dxe4 {[%emt 0:00:01]} 39. Re2 {[%emt 0:01:15]} Re5 {[%emt 0:00:29]} 1/2-1/2

[Event "NED-ch U14 Youth 2019"]
[Site "Assen"]
[Date "2019.05.04"]
[Round "9.6"]
[White "De Winter, Arthur"]
[Black "Van Foreest, Nanne"]
[Result "1/2-1/2"]
[ECO "C67"]
[WhiteElo "1661"]
[BlackElo "1790"]
[Annotator "NA RC"]
[PlyCount "189"]
[EventDate "2019.04.28"]
[EventType "swiss"]
[EventCountry "NED"]
[SourceTitle "playchess.com"]
[Source "ChessBase"]
[SourceQuality "1"]
[TimeControl "5400+30"]

1. e4 {[%emt 0:00:00]} e5 {[%emt 0:00:00]} 2. Nf3 {[%emt 0:00:00]} Nc6 {[%emt 0:00:00]} 3. Bb5 {[%emt 0:00:00]} Nf6 {[%emt 0:00:00]} 4. O-O {[%emt 0:00:00]} Nxe4 {[%emt 0:00:00]} 5. Re1 {[%emt 0:00:00]} Nd6 {[%emt 0:00:00]} 6. Nxe5 {[%emt 0:00:08]} Be7 {[%emt 0:00:09]} 7. Bf1 {[%emt 0:00:16]} Nxe5 {[%emt 0:00:11]} 8. Rxe5 {[%emt 0:00:12]} O-O {[%emt 0:00:08]} 9. d4 {[%emt 0:00:36]} b6 {[%emt 0:01:21]} 10. c3 {[%emt 0:01:26]} Bb7 {[%emt 0:00:14]} 11. Bf4 {[%emt 0:00:35]} Bf6 {[%emt 0:03:59]} 12. Re1 {[%emt 0:00:09]} Ne4 {[%emt 0:03:59]} 13. Bd3 {[%emt 0:01:22]} d5 {[%emt 0:01:08]} 14. Nd2 {[%emt 0:01:14]} Nxd2 {[%emt 0:03:19]} 15. Qxd2 {[%emt 0:00:10]} c5 {[%emt 0:02:43]} 16. Be5 {[%emt 0:03:27]} cxd4 {[%emt 0:05:32]} 17. cxd4 {[%emt 0:00:08]} Rc8 {[%emt 0:00:57]} 18. Qf4 {[%emt 0:01:12]} Bxe5 {[%emt 0:11:50]} 19. Rxe5 {[%emt 0:01:44]} g6 {[%emt 0:11:01]} 20. Rae1 {[%emt 0:02:07]} Rc7 {[%emt 0:02:28]} 21. R5e3 {[%emt 0:08:50]} Bc8 {[%emt 0:02:02]} 22. h3 {[%emt 0:18:03]} Be6 {[%emt 0:04:12]} 23. R3e2 {[%emt 0:10:33]} Qd7 {[%emt 0:46:17]} 24. Rc1 {[%emt 0:00:51]} Rxc1+ {[%emt 0:00:00]} 25. Qxc1 {[%emt 0:00:06]} Rc8 {[%emt 0:00:00]} 26. Rc2 {[%emt 0:00:13]} Rxc2 {[%emt 0:00:00]} 27. Qxc2 {[%emt 0:00:09]} Kf8 {[%emt 0:00:00]} 28. Kf1 {[%emt 0:04:28]} Ke7 {[%emt 0:00:00]} 29. a3 {[%emt 0:03:04]} Qd6 {[%emt 0:00:00]} 30. Qa4 {[%emt 0:43:57]} a5 {[%emt 0:00:00]} 31. b4 {[%emt 0:00:00]} axb4 {[%emt 0:00:00]} 32. axb4 {[%emt 0:00:00]} Kf6 {[%emt 0:00:00]} 33. Ke2 {[%emt 0:00:00]} Qf4 {[%emt 0:00:00]} 34. Qa1 {[%emt 0:00:00]} Qg5 {[%emt 0:00:00]} 35. Qa6 {[%emt 0:00:00]} Qxg2 {[%emt 0:00:00]} 36. Qxb6 {[%emt 0:00:00]} Qxh3 {[%emt 0:00:00]} 37. Qb8 {[%emt 0:00:00]} Qg4+ {[%emt 0:00:00]} 38. Kd2 {[%emt 0:00:00]} Kg7 {[%emt 0:00:00]} 39. Qe5+ {[%emt 0:00:00]} f6 {[%emt 0:00:00]} 40. Qc7+ {[%emt 0:00:00]} Kh6 {[%emt 0:00:00]} 41. Kc3 {[%emt 0:00:00]} Qg1 {[%emt 0:00:00]} 42. Qf4+ {[%emt 0:00:00]} Kg7 {[%emt 0:00:00]} 43. b5 {[%emt 0:00:00]} Qa1+ {[%emt 0:00:00]} 44. Kb3 {[%emt 0:00:00]} Qa5 {[%emt 0:00:00]} 45. Qd6 {[%emt 0:00:00]} Bg4 {[%emt 0:00:00]} 46. Qe7+ {[%emt 0:00:00]} Kh6 {[%emt 0:00:21]} 47. f3 {[%emt 0:00:00]} Qd2 {[%emt 0:00:32]} 48. Bc2 {[%emt 0:00:00]} Bxf3 {[%emt 0:00:44]} 49. Qxf6 {[%emt 0:00:00]} Qe3+ {[%emt 0:01:43]} 50. Kb4 {[%emt 0:00:00]} Be2 {[%emt 0:00:19]} 51. Ba4 {[%emt 0:02:02]} Qd2+ {[%emt 0:00:51]} 52. Kc5 {[%emt 0:00:43]} Qc3+ {[%emt 0:00:34]} 53. Kb6 {[%emt 0:03:41]} Qb4 {[%emt 0:00:30]} 54. Qf4+ {[%emt 0:01:01]} g5 {[%emt 0:02:37]} 55. Qf6+ {[%emt 0:00:22]} Kh5 {[%emt 0:00:07]} 56. Qf7+ {[%emt 0:00:05]} Kg4 {[%emt 0:00:26]} 57. Qe6+ {[%emt 0:00:15]} Kf3 {[%emt 0:00:13]} 58. Qxd5+ {[%emt 0:00:17]} Kf2 {[%emt 0:00:32]} 59. Bc2 {[%emt 0:03:15]} Bxb5 {[%emt 0:01:09]} 60. Qf5+ {[%emt 0:00:47]} Ke1 {[%emt 0:00:18]} 61. Qxb5 {[%emt 0:01:00]} Qxd4+ {[%emt 0:00:08]} 62. Ka6 {[%emt 0:00:13]} Qd6+ {[%emt 0:00:27]} 63. Kb7 {[%emt 0:00:26]} Qe7+ {[%emt 0:00:26]} 64. Ka8 {[%emt 0:00:58]} Qf8+ {[%emt 0:00:14]} 65. Kb7 {[%emt 0:00:19]} Qf7+ {[%emt 0:00:08]} 66. Kc8 {[%emt 0:00:50]} Qe6+ {[%emt 0:01:16]} 67. Kb7 {[%emt 0:00:20]} h6 {[%emt 0:02:42]} 68. Bb3 {[%emt 0:00:32]} Qe2 {[%emt 0:00:36]} 69. Qb6 {[%emt 0:00:17]} Qf3+ {[%emt 0:00:22]} 70. Ka6 {[%emt 0:00:30]} g4 {[%emt 0:00:21]} 71. Qb4+ {[%emt 0:01:02]} Kf2 {[%emt 0:00:30]} 72. Qb6+ {[%emt 0:00:59]} Kg2 {[%emt 0:00:52]} 73. Qe6 {[%emt 0:00:44]} Qa8+ {[%emt 0:00:49]} 74. Kb5 {[%emt 0:00:13]} Qb8+ {[%emt 0:00:17]} 75. Ka6 {[%emt 0:00:22]} Qa8+ {[%emt 0:01:00]} 76. Kb5 {[%emt 0:00:09]} Qb7+ {[%emt 0:00:11]} 77. Ka5 {[%emt 0:00:11]} Qc7+ {[%emt 0:00:45]} 78. Ka6 {[%emt 0:00:13]} Qf4 {[%emt 0:00:27]} 79. Bd5+ {[%emt 0:00:16]} Kg1 {[%emt 0:01:05]} 80. Qb6+ {[%emt 0:00:47]} Kh2 {[%emt 0:00:41]} 81. Qb2+ {[%emt 0:00:22]} Kh3 {[%emt 0:00:47]} 82. Qg2+ {[%emt 0:01:29]} Kh4 {[%emt 0:00:06]} 83. Qh1+ {[%emt 0:00:25]} Kg5 {[%emt 0:00:11]} 84. Kb5 {[%emt 0:00:28]} g3 {[%emt 0:00:27]} 85. Bf3 {[%emt 0:00:13]} Qe5+ {[%emt 0:00:31]} 86. Kc4 {[%emt 0:00:13]} Qc7+ {[%emt 0:00:32]} 87. Kd3 {[%emt 0:00:10]} Qd6+ {[%emt 0:00:16]} 88. Ke2 {[%emt 0:00:10]} Qa6+ {[%emt 0:00:13]} 89. Ke1 {[%emt 0:00:50]} Qa1+ {[%emt 0:00:24]} 90. Bd1 {[%emt 0:00:09]} Qc3+ {[%emt 0:00:14]} 91. Kf1 {[%emt 0:00:16]} Qd3+ {[%emt 0:00:54]} 92. Kg2 {[%emt 0:00:44]} Qe4+ {[%emt 0:00:50]} 93. Kg1 {[%emt 0:03:12]} Qe3+ 94. Kg2 Qf2+ 95. Kh3 1/2-1/2

[Event "NED-ch U14 Youth 2019"]
[Site "Assen"]
[Date "2019.05.04"]
[Round "9.7"]
[White "Bartels, Vladimir"]
[Black "Arnold, Lorin"]
[Result "1-0"]
[ECO "D00"]
[WhiteElo "1748"]
[BlackElo "1598"]
[Annotator "NA RC"]
[PlyCount "115"]
[EventDate "2019.04.28"]
[EventType "swiss"]
[EventCountry "NED"]
[SourceTitle "playchess.com"]
[Source "ChessBase"]
[SourceQuality "1"]
[TimeControl "5400+30"]

1. d4 {[%emt 0:00:00]} d5 {[%emt 0:00:00]} 2. Bf4 {[%emt 0:00:00]} e6 {[%emt 0:01:36]} 3. e3 {[%emt 0:00:12]} f5 {[%emt 0:00:09]} 4. c4 {[%emt 0:02:22]} Nf6 {[%emt 0:00:07]} 5. Nf3 {[%emt 0:01:14]} c6 {[%emt 0:00:16]} 6. Bd3 {[%emt 0:03:27]} Nbd7 {[%emt 0:01:47]} 7. O-O {[%emt 0:01:15]} Be7 {[%emt 0:00:27]} 8. h3 {[%emt 0:01:14]} Ne4 {[%emt 0:00:17]} 9. Ne5 {[%emt 0:02:34]} O-O {[%emt 0:00:53]} 10. Nd2 {[%emt 0:03:15]} Ndf6 {[%emt 0:04:22]} 11. Qc2 {[%emt 0:13:38]} Bd7 {[%emt 0:00:36]} 12. f3 {[%emt 0:05:26]} Nxd2 {[%emt 0:00:55]} 13. Qxd2 {[%emt 0:00:12]} Be8 {[%emt 0:00:02]} 14. Qc2 {[%emt 0:09:25]} Qb6 {[%emt 0:01:06]} 15. c5 {[%emt 0:14:57]} Qd8 {[%emt 0:01:23]} 16. Rac1 {[%emt 0:01:48]} Rc8 {[%emt 0:02:14]} 17. Qa4 {[%emt 0:01:27]} Ra8 {[%emt 0:03:30]} 18. Qb3 {[%emt 0:02:48]} Qc8 {[%emt 0:00:40]} 19. Rc3 {[%emt 0:04:09]} Nd7 {[%emt 0:00:16]} 20. Rfc1 {[%emt 0:05:17]} Bf6 {[%emt 0:05:26]} 21. Nxd7 {[%emt 0:01:51]} Bxd7 {[%emt 0:00:07]} 22. Bd6 {[%emt 0:00:06]} Re8 {[%emt 0:00:14]} 23. Qb4 {[%emt 0:02:41]} e5 {[%emt 0:01:34]} 24. dxe5 {[%emt 0:09:35]} Bxe5 {[%emt 0:00:15]} 25. Bxe5 {[%emt 0:00:03]} Rxe5 {[%emt 0:00:07]} 26. e4 {[%emt 0:00:23]} fxe4 {[%emt 0:01:06]} 27. fxe4 {[%emt 0:00:07]} Qc7 {[%emt 0:02:11]} 28. exd5 {[%emt 0:01:34]} cxd5 {[%emt 0:00:14]} 29. Rf1 {[%emt 0:03:25]} Bc6 {[%emt 0:02:18]} 30. Qh4 {[%emt 0:03:33]} h6 {[%emt 0:00:22]} 31. Qf4 {[%emt 0:01:52]} Qe7 {[%emt 0:00:56]} 32. Rc2 {[%emt 0:00:46]} Rf8 {[%emt 0:06:12]} 33. Qxf8+ {[%emt 0:00:16]} Qxf8 {[%emt 0:00:05]} 34. Bh7+ {[%emt 0:00:08]} Kxh7 {[%emt 0:00:41]} 35. Rxf8 {[%emt 0:00:06]} Re1+ {[%emt 0:00:52]} 36. Kf2 {[%emt 0:00:09]} Ra1 {[%emt 0:01:32]} 37. a3 {[%emt 0:02:20]} d4 {[%emt 0:01:10]} 38. Rd8 {[%emt 0:03:24]} d3 {[%emt 0:00:22]} 39. Rd2 {[%emt 0:00:55]} Rc1 {[%emt 0:03:44]} 40. R8xd3 {[%emt 0:01:30]} Rxc5 {[%emt 0:00:12]} 41. Rg3 {[%emt 0:00:25]} h5 {[%emt 0:00:25]} 42. Ke3 {[%emt 0:00:27]} Re5+ {[%emt 0:00:13]} 43. Kd4 {[%emt 0:00:32]} Rd5+ {[%emt 0:00:12]} 44. Kc3 {[%emt 0:00:13]} Rf5 {[%emt 0:01:07]} 45. Rd4 {[%emt 0:00:42]} Rf2 {[%emt 0:00:13]} 46. Rd2 {[%emt 0:00:05]} Rf5 {[%emt 0:00:13]} 47. Rd4 {[%emt 0:01:00]} Rf2 {[%emt 0:00:05]} 48. Rh4 {[%emt 0:00:31]} g6 {[%emt 0:00:20]} 49. Rd4 {[%emt 0:00:25]} Rxg2 {[%emt 0:03:30]} 50. Rxg2 {[%emt 0:00:06]} Bxg2 {[%emt 0:00:05]} 51. Rd7+ {[%emt 0:00:08]} Kh6 {[%emt 0:00:04]} 52. h4 {[%emt 0:00:05]} Bc6 {[%emt 0:05:46]} 53. Re7 {[%emt 0:00:09]} Bd5 {[%emt 0:54:01]} 54. Kd4 {[%emt 0:00:38]} g5 {[%emt 0:00:00]} 55. hxg5+ {[%emt 0:00:17]} Kxg5 {[%emt 0:00:00]} 56. Kxd5 {[%emt 0:00:19]} h4 {[%emt 0:00:00]} 57. Rh7 {[%emt 0:00:11]} Kg4 {[%emt 0:00:00]} 58. Rxb7 {[%emt 0:00:46]} 1-0

[Event "NED-ch U14 Youth 2019"]
[Site "Assen"]
[Date "2019.05.04"]
[Round "9.8"]
[White "Catalan, Ciro"]
[Black "Franke, Daniel"]
[Result "0-1"]
[ECO "E05"]
[WhiteElo "1599"]
[BlackElo "1465"]
[Annotator "NA RC"]
[PlyCount "92"]
[EventDate "2019.04.28"]
[EventType "swiss"]
[EventCountry "NED"]
[SourceTitle "playchess.com"]
[Source "ChessBase"]
[SourceQuality "1"]
[TimeControl "5400+30"]

1. d4 {[%emt 0:00:00]} Nf6 {[%emt 0:00:00]} 2. c4 {[%emt 0:00:00]} e6 {[%emt 0:00:00]} 3. Nf3 {[%emt 0:00:00]} d5 {[%emt 0:00:01]} 4. g3 {[%emt 0:00:00]} dxc4 {[%emt 0:00:24]} 5. Bg2 {[%emt 0:00:00]} Nbd7 {[%emt 0:06:14]} 6. O-O {[%emt 0:01:46]} Be7 {[%emt 0:01:00]} 7. Nbd2 {[%emt 0:00:37]} Nb6 {[%emt 0:06:29]} 8. Nxc4 {[%emt 0:01:30]} Nfd5 {[%emt 0:03:04]} 9. e4 {[%emt 0:07:23]} Nxc4 {[%emt 0:00:44]} 10. Qa4+ {[%emt 0:00:31]} Bd7 {[%emt 0:00:05]} 11. Qxc4 {[%emt 0:00:18]} Nb6 {[%emt 0:00:05]} 12. Qc2 {[%emt 0:05:14]} O-O {[%emt 0:02:20]} 13. Rd1 {[%emt 0:05:30]} Rc8 {[%emt 0:08:07]} 14. Be3 {[%emt 0:03:35]} Qe8 {[%emt 0:06:03]} 15. Ne5 {[%emt 0:13:31]} Bb5 {[%emt 0:05:09]} 16. b3 {[%emt 0:04:27]} Nd7 {[%emt 0:04:32]} 17. Nxd7 {[%emt 0:16:11]} Bxd7 {[%emt 0:01:14]} 18. Qd2 {[%emt 0:04:12]} a6 {[%emt 0:06:04]} 19. Rac1 {[%emt 0:04:23]} Bd6 {[%emt 0:06:41]} 20. Rc2 {[%emt 0:09:00]} Bc6 {[%emt 0:11:39]} 21. e5 {[%emt 0:03:42]} Bxg2 {[%emt 0:02:04]} 22. exd6 {[%emt 0:00:22]} Bc6 {[%emt 0:00:13]} 23. dxc7 {[%emt 0:06:06]} Rxc7 {[%emt 0:01:43]} 24. d5 {[%emt 0:01:14]} Rd7 {[%emt 0:03:10]} 25. Qb4 {[%emt 0:11:23]} Rxd5 {[%emt 0:04:28]} 26. Rxd5 {[%emt 0:00:43]} Bxd5 {[%emt 0:00:19]} 27. Bc5 {[%emt 0:01:08]} Qc6 {[%emt 0:00:43]} 28. Rc3 {[%emt 0:00:29]} Rc8 {[%emt 0:00:41]} 29. Bd4 {[%emt 0:00:15]} Qd7 {[%emt 0:00:13]} 30. Rxc8+ {[%emt 0:00:29]} Qxc8 {[%emt 0:00:05]} 31. Qd2 {[%emt 0:00:28]} h6 {[%emt 0:00:31]} 32. f4 {[%emt 0:00:21]} f6 {[%emt 0:01:21]} 33. Bb2 {[%emt 0:00:28]} Kf7 {[%emt 0:01:33]} 34. Qf2 {[%emt 0:00:47]} Qc6 {[%emt 0:00:54]} 35. Qd2 {[%emt 0:00:27]} Be4 {[%emt 0:02:18]} 36. Bc3 {[%emt 0:00:19]} Qd5 {[%emt 0:02:30]} 37. Qe2 {[%emt 0:00:06]} Qc5+ {[%emt 0:00:55]} 38. Kf1 {[%emt 0:00:23]} Qxc3 {[%emt 0:00:16]} 39. Qxe4 {[%emt 0:00:02]} Qa1+ {[%emt 0:00:09]} 40. Kg2 {[%emt 0:01:29]} Qxa2+ {[%emt 0:00:10]} 41. Kh3 {[%emt 0:00:10]} Qxb3 {[%emt 0:00:07]} 42. Qd4 {[%emt 0:00:24]} Qb5 {[%emt 0:00:26]} 43. Qa7 {[%emt 0:01:22]} a5 {[%emt 0:00:33]} 44. Qb8 {[%emt 0:00:06]} Qf1+ {[%emt 0:01:21]} 45. Kh4 {[%emt 0:00:39]} g5+ {[%emt 0:00:34]} 46. fxg5 {[%emt 0:00:52]} hxg5+ {[%emt 0:00:22]} 0-1

[Event "NED-ch U14 Youth 2019"]
[Site "Assen"]
[Date "2019.05.04"]
[Round "9.9"]
[White "Van Kuijk, Vadim"]
[Black "Van Arendonk, Polle"]
[Result "0-1"]
[ECO "A48"]
[WhiteElo "1589"]
[BlackElo "1803"]
[Annotator "NA RC"]
[PlyCount "102"]
[EventDate "2019.04.28"]
[EventType "swiss"]
[EventCountry "NED"]
[SourceTitle "playchess.com"]
[Source "ChessBase"]
[SourceQuality "1"]
[TimeControl "5400+30"]

1. d4 {[%emt 0:00:00]} Nf6 {[%emt 0:00:00]} 2. Bf4 {[%emt 0:00:05]} g6 {[%emt 0:00:00]} 3. Nf3 {[%emt 0:00:07]} Bg7 {[%emt 0:00:00]} 4. e3 {[%emt 0:00:49]} O-O {[%emt 0:00:20]} 5. Nbd2 {[%emt 0:01:30]} c5 {[%emt 0:01:04]} 6. c3 {[%emt 0:00:24]} d6 {[%emt 0:00:20]} 7. Be2 {[%emt 0:07:55]} b6 {[%emt 0:01:50]} 8. O-O {[%emt 0:10:35]} Bb7 {[%emt 0:00:20]} 9. a4 {[%emt 0:12:30] A48: 1 d4 Nf6 2 Nf3 g6: Torre, London and Colle Systems} (9. h3 Na6 10. Bh2 Nc7 11. a4 Ne4 12. Nxe4 Bxe4 13. Nd2 Bc6 14. b4 Qc8 15. b5 Bd5 16. a5 f5 17. Re1 {1-0 (53) Caruana,F (2816)-Aronian,L (2764) Leuven 2018}) 9... a6 {[%emt 0:00:07]} 10. Nc4 {[%emt 0:01:49]} Nbd7 {[%emt 0:00:49]} 11. Qb3 {[%emt 0:05:53]} Qc7 $146 {[%emt 0:00:48]} ({Predecessor:} 11... Bc6 12. dxc5 bxc5 13. Rfd1 Rb8 {0-1 (42) Danilova,R (1959)-Soumya,S (2349) Moscow 2018}) 12. Rfd1 {[%emt 0:04:01]} Bd5 {[%emt 0:05:00]} 13. Nfd2 {[%emt 0:12:33]} Qc6 {[%emt 0:09:49]} 14. dxc5 {[%emt 0:04:29]} b5 {[%emt 0:12:01]} 15. cxd6 $2 {[%emt 0:16:43]} ({White has to play} 15. Na5 $1 $15 Qxc5 16. Qa3) 15... bxc4 {[%emt 0:09:00]} 16. Bxc4 {[%emt 0:00:50]} exd6 {[%emt 0:02:13]} 17. Bxd5 {[%emt 0:02:48]} Nxd5 {[%emt 0:00:35]} 18. Bxd6 {[%emt 0:03:36]} (18. Bg5 {is a better defense.}) 18... Qxd6 {[%emt 0:00:24]} 19. Ne4 {[%emt 0:02:09]} Qb6 {[%emt 0:02:17]} 20. Qxd5 {[%emt 0:01:40]} Nf6 {[%emt 0:00:13]} 21. Nxf6+ {[%emt 0:03:08]} Bxf6 {[%emt 0:00:06]} 22. Qd6 {[%emt 0:01:04]} Rab8 {[%emt 0:02:38]} 23. a5 {[%emt 0:02:56]} Qxd6 {[%emt 0:01:26]} 24. Rxd6 {[%emt 0:00:03]} Be5 {[%emt 0:00:45]} 25. Rb6 {[%emt 0:03:08]} Rfd8 {[%emt 0:01:18]} 26. f4 {[%emt 0:00:27]} Bc7 {[%emt 0:02:35]} 27. Rc6 {[%emt 0:00:34] [#]} Rdc8 {[%emt 0:00:24]} (27... Rb7 $1 $17) 28. Ra2 {[%emt 0:01:25]} (28. Rxa6 $11 {keeps the balance.} Rxb2 29. Rc6) 28... Ra8 {[%emt 0:00:39]} 29. g3 {[%emt 0:00:45]} Kf8 {[%emt 0:00:42]} 30. Ra4 {[%emt 0:00:26]} Bd8 {[%emt 0:00:56]} 31. Rxc8 {[%emt 0:00:31]} Rxc8 {[%emt 0:00:05]} 32. Kf2 {[%emt 0:00:28]} Ke7 {[%emt 0:00:32]} 33. Re4+ $17 {[%emt 0:00:31]} Kd7 {[%emt 0:02:38]} 34. Ke2 {[%emt 0:00:30]} Rc5 {[%emt 0:02:01]} 35. Rd4+ {[%emt 0:00:17]} Kc7 {[%emt 0:00:48]} 36. Ra4 {[%emt 0:00:37]} Kc6 {[%emt 0:00:21]} 37. e4 {[%emt 0:00:38]} Rxa5 {[%emt 0:01:18]} 38. Rxa5 {[%emt 0:00:17]} Bxa5 {[%emt 0:00:05]} 39. Kd3 {[%emt 0:00:27]} Bb6 {[%emt 0:00:27]} 40. g4 {[%emt 0:00:33]} Bc7 {[%emt 0:01:01]} 41. Ke3 {[%emt 0:00:40]} g5 {[%emt 0:01:03]} 42. fxg5 {[%emt 0:00:35]} Bxh2 {[%emt 0:00:05]} 43. c4 {[%emt 0:00:27]} Kc5 {[%emt 0:00:40]} 44. b3 {[%emt 0:00:18]} Be5 {[%emt 0:00:07]} 45. Kd3 {[%emt 0:00:47]} Kb4 {[%emt 0:00:31]} 46. Kc2 {[%emt 0:00:27]} Bf4 {[%emt 0:00:44]} 47. Kd3 {[%emt 0:00:27]} Be5 {[%emt 0:00:35]} 48. Kc2 {[%emt 0:00:04]} a5 {[%emt 0:00:12]} 49. Kd3 {[%emt 0:00:56]} Kxb3 {[%emt 0:00:23]} 50. c5 {[%emt 0:00:27]} a4 {[%emt 0:00:11]} 51. c6 {[%emt 0:00:24]} a3 {[%emt 0:00:08]} 0-1